Cogmind - Beta 15 @@@ ROGUE MODE // 2025.10.13 @ 23:20:15 Player: NQH Result: Destroyed by B-48 Gladiator with Mace Performance ------------- Evolutions (3) 1500 Regions Visited (7) 1400 Robots Destroyed (10) 50 Value Destroyed (256) 256 Prototype IDs (1) 20 Alien Tech Used (0) 0 Bonus (700) 700 TOTAL SCORE: 3926 Bonus ------- Entered Garrisons 200 Used RIF Installer 500 Cogmind --------- Core Integrity 0/700 Matter 290/300 Energy 84/100 System Corruption 1% Temperature Cool (8) Movement Flying (32) Location -7/Garrison Parts ------- > --- POWER (1) -------- (None) > --- PROPULSION (4) --- VTOL Module VTOL Module > --- UTILITY (6) ------ (None) > --- WEAPON (2) ------- (None) > --- INVENTORY (5) ---- Light Ion Engine Light Ion Engine Airjet Airjet Peak State ------------ > --- POWER ------------ Neutrino Core > --- PROPULSION ------- Flight Unit Flight Unit Improved Flight Unit > --- UTILITY ---------- Small Storage Unit Terrain Scan Processor Melee Analysis Suite High-powered Tractor Beam > --- WEAPON ----------- Light Assault Rifle Flak Gun > --- INVENTORY -------- Light Ion Engine Light Ion Engine Airjet Airjet Light Armor Plating Light Assault Rifle [Rating: 26] Favorites ----------- Power Neutrino Core Power Core Neutrino Core Propulsion Light Treads Treads Light Treads Flight Unit Flight Unit Utility Targeting Computer Device High-powered Tractor Beam Storage Small Storage Unit Processor Targeting Computer Protection Light Armor Plating Weapon Light Assault Rifle Ballistic Gun Light Assault Rifle Build | -11 -10 -10 -10 -9 -8 -7 -7 ------- Run | Yrd Mat Min Exi Min Mat Fac Gar Slots Evolved 6 | . . . . . 4 2 . Power . | . . . . . . . . Propulsion 2 | . . . . . . 2 . Utility 4 | . . . . . 4 . . Weapon . | . . . . . . . . Parts Attached 23 | . . 8 . . 8 2 5 Power 1 | . . . . . . . 1 Engine . | . . . . . . . . Core 1 | . . . . . . . 1 Reactor . | . . . . . . . . Propulsion 10 | . . 2 . . 4 2 2 Treads 1 | . . 1 . . . . . Leg . | . . . . . . . . Wheel . | . . . . . . . . Hover . | . . . . . . . . Flight 9 | . . 1 . . 4 2 2 Utility 7 | . . 3 . . 4 . . Device 1 | . . . . . 1 . . Storage 1 | . . . . . 1 . . Processor 4 | . . 2 . . 2 . . Hackware . | . . . . . . . . Protection 1 | . . 1 . . . . . Artifact . | . . . . . . . . Weapon 5 | . . 3 . . . . 2 Energy Gun . | . . . . . . . . Energy Cannon . | . . . . . . . . Ballistic Gun 5 | . . 3 . . . . 2 Ballistic Cannon . | . . . . . . . . Launcher . | . . . . . . . . Special Weapon . | . . . . . . . . Impact Weapon . | . . . . . . . . Slashing Weapon . | . . . . . . . . Piercing Weapon . | . . . . . . . . Special Melee Weapon . | . . . . . . . . Unidentified Prototypes 1 | . . . . . 1 . . Parts Lost 9 | . . . . . 3 . 6 Power . | . . . . . . . . Propulsion 4 | . . . . . 1 . 3 Utility 2 | . . . . . 2 . . Weapon 3 | . . . . . . . 3 Highest Loss Streak 5 | . . . . . 3 . 5 To Critical Strikes . | . . . . . . . . Average Backups 5 | 2 5 4 5 5 6 6 5 Power 1 | 1 2 2 2 2 2 2 2 Propulsion . | . . . . . 2 2 2 Utility 1 | . 1 1 2 2 1 1 . Weapon 1 | 1 2 1 1 1 1 1 . Tool/Special . | . . . . . . . . Unused Backups 4 | . . . . . . . 4 Power 2 | . . . . . . . 2 Propulsion 2 | . . . . . . . 2 Utility . | . . . . . . . . Weapon . | . . . . . . . . Tool/Special . | . . . . . . . . Average Slot Usage (%) 55 | . . 59 71 71 53 69 36 Treads 7 | . . 10 14 14 4 . . Flight 5 | . . 2 . . 9 23 12 Storage 2 | . . . . . 7 7 3 Processor 17 | . . 19 28 28 13 15 6 Ballistic Gun 21 | . . 25 28 28 18 15 7 Peak Build Rating 26 | . . 5 5 5 16 18 26 Average Rating 5 | . . 4 5 5 8 17 8 On Entrance 6 | . . . 5 5 5 16 18 Naked Turns 80 | . 8 34 . . . . 38 Heaviest Build 21 | . . 5 2 2 8 8 21 Greatest Support 20 | 3 3 20 20 20 20 17 17 Greatest Overweight (x) 1 | . . 1 . . 1 . 1 Average Overweight (x) . | . . . . . . . . Largest Inventory Capacity 8 | 5 5 5 5 5 8 8 8 Average Capacity 5 | 5 5 5 5 5 7 8 6 Most Carried 8 | 5 5 5 5 5 8 7 6 Average Carried 5 | 3 5 4 5 5 6 6 5 Final Capacity 8 | 5 5 5 5 5 8 8 5 Final Carried 8 | 5 5 5 5 5 8 6 4 Class Distribution -------------------- 84% | Mutant 15% | Scavenger-Sprinter Dominant Class ---------------- Mutant | -10/Materials Mutant | -10/Mines Mutant | -10/Exiles Mutant | -9/Mines Mutant | -8/Materials Mutant | -7/Factory Mutant | -7/Garrison Resources | -11 -10 -10 -10 -9 -8 -7 -7 ----------- Run | Yrd Mat Min Exi Min Mat Fac Gar Matter Collected 461 | 200 . 100 . 2 91 . 68 Remotely 64 | . . . . . 40 . 24 Salvage Created 304 | . . 119 . . 105 . 80 Parts 32 | . . 10 . . 15 . 7 Haulers Intercepted . | . . . . . . . . Recyclers Shooed . | . . . . . . . . Parts Field Recycled . | . . . . . . . . Retrieved Matter . | . . . . . . . . Parts Self-Destructed . | . . . . . . . . Prevented . | . . . . . . . . Kills | -11 -10 -10 -10 -9 -8 -7 -7 ------- Run | Yrd Mat Min Exi Min Mat Fac Gar Combat Hostiles Destroyed 10 | . . 3 . . 4 . 3 Guns 10 | . . 3 . . 4 . 3 Classes Destroyed 2 | . . 2 . . . . . Swarmer 7 | . . 1 . . 3 . 3 Sentry 3 | . . 2 . . 1 . . Best Kill Streak 3 | . . 2 . . 3 . 1 Combat Bots Only 3 | . . 2 . . 3 . 1 Max Kills in Single Turn 2 | . . 1 . . 2 . 1 Gunslinging 1 | . . . . . 1 . . Exploded . | . . . . . . . . Melee . | . . . . . . . . Uniques/NPCs Destroyed . | . . . . . . . . Combat | -11 -10 -10 -10 -9 -8 -7 -7 -------- Run | Yrd Mat Min Exi Min Mat Fac Gar Hostile Shots Fired 136 | . . 27 . . 20 . 89 Missed 48 | . . 12 . . 6 . 30 Hits 88 | . . 15 . . 14 . 59 Melee 6 | . . . . . . . 6 Projectile 82 | . . 15 . . 14 . 53 Critical Strikes 2 | . . . . . . . 2 Damage Taken 1426 | . . 214 . . 171 . 1041 Core 829 | . . 112 . . 12 . 705 Absorbed by Shields . | . . . . . . . . Core Remaining (%) 84 | 100 . . . 55 97 . . Volleys Fired 40 | . . 11 . . 8 . 21 Largest 2 | . . 2 . . 2 . 2 Hottest 48 | . . 40 . . 40 . 48 Shots Fired 65 | . . 22 . . 16 . 27 Gun 65 | . . 22 . . 16 . 27 Cannon . | . . . . . . . . Launcher . | . . . . . . . . Special . | . . . . . . . . Kinetic 65 | . . 22 . . 16 . 27 Thermal . | . . . . . . . . Explosive . | . . . . . . . . Electromagnetic . | . . . . . . . . Robot Hit Streak 21 | . . 15 . . 21 . 6 Robot Miss Streak 4 | . . 1 . . 2 . 4 Penetration Max . | . . . . . . . . Secondary Targets 1 | . . . . . 1 . . Max Gunslinging Chain 1 | . . . . . 1 . . Shots Hit Robots 41 | . . 15 . . 13 . 13 Core Hits 25 | . . 7 . . 7 . 11 Critical Kills . | . . . . . . . . Critical Parts Destroyed . | . . . . . . . . Critical Strikes . | . . . . . . . . Melee Attacks . | . . . . . . . . Impact . | . . . . . . . . Slashing . | . . . . . . . . Piercing . | . . . . . . . . Sneak Attacks . | . . . . . . . . Combat Hostiles . | . . . . . . . . Follow-up Attacks . | . . . . . . . . Damage Inflicted 453 | . . 130 . . 104 . 219 Guns 392 | . . 129 . . 104 . 159 Cannons . | . . . . . . . . Explosions . | . . . . . . . . Melee . | . . . . . . . . Ramming 61 | . . 1 . . . . 60 Kinetic 392 | . . 129 . . 104 . 159 Thermal . | . . . . . . . . Explosive . | . . . . . . . . Electromagnetic . | . . . . . . . . Impact . | . . . . . . . . Slashing . | . . . . . . . . Piercing . | . . . . . . . . Highest Corruption 1 | . . . . . . . 1 Average Corruption 1 | . . . . . . . 1 Corruption Purged . | . . . . . . . . Corruption Blocked . | . . . . . . . . Overload Shots . | . . . . . . . . Overflow Damage . | . . . . . . . . Projectiles . | . . . . . . . . Explosions . | . . . . . . . . Melee . | . . . . . . . . Knockbacks . | . . . . . . . . Impact . | . . . . . . . . Kinetic . | . . . . . . . . Secondary . | . . . . . . . . Self-Inflicted Damage 25 | . . . . . . . 25 Shots . | . . . . . . . . Rammed 23 | . . 2 . . . . 21 Targets Rammed 23 | . . 2 . . . . 21 Kicked . | . . . . . . . . Crushed . | . . . . . . . . Highest Temperature 14 | . . 14 . . . . 2 Average Temperature 5 | . . 7 . . . . 1 Received Heat Transfer 108 | . . 63 . . 45 . . Siege Activations . | . . . . . . . . Martial Activations . | . . . . . . . . Shielding Activations . | . . . . . . . . Robots Disrupted . | . . . . . . . . Combat Hostiles . | . . . . . . . . Robots Corrupted . | . . . . . . . . Combat Hostiles . | . . . . . . . . Parts Fried . | . . . . . . . . Impact Corruptions . | . . . . . . . . Robots Melted . | . . . . . . . . Combat Hostiles . | . . . . . . . . Parts Melted . | . . . . . . . . Heat Transferred . | . . . . . . . . Parts Sabotaged . | . . . . . . . . Parts Stolen . | . . . . . . . . Parts Stripped . | . . . . . . . . Power Chain Reactions . | . . . . . . . . Alert | -11 -10 -10 -10 -9 -8 -7 -7 ------- Run | Yrd Mat Min Exi Min Mat Fac Gar Maximum Alert Level . | . . . . . . . . Low Security (%) 100 | 100 100 100 . 100 100 100 100 Level 1 . | . . . . . . . . Level 2 . | . . . . . . . . Level 3 . | . . . . . . . . Level 4 . | . . . . . . . . Level 5 . | . . . . . . . . High Security . | . . . . . . . . Max Security . | . . . . . . . . Peak Influence 85 | . . 40 . . 85 11 75 Initial 11 | . . . . . . 11 7 Average 15 | . . 7 . . 33 11 25 Influence Increases 310 | . . 90 . . 115 . 105 Destroy 0b10 Robot/C 200 | . . 60 . . 80 . 60 Destroy Leader 20 | . . . . . 20 . . Lose Combat Pursuer 90 | . . 30 . . 15 . 45 Influence Decreases 235 | . . 90 . . 90 14 41 Entered New Map 18 | . . . . . . 14 4 Time Decay 150 | . . 90 . . 60 . . Lost Part 67 | . . . . . 30 . 37 Squads Dispatched 1 | . . . . . 1 . . Investigation . | . . . . . . . . Extermination . | . . . . . . . . Reinforcement 1 | . . . . . 1 . . Assault . | . . . . . . . . Garrison . | . . . . . . . . Intercept . | . . . . . . . . Searches Triggered . | . . . . . . . . Construction Impeded . | . . . . . . . . Haulers Reinforced . | . . . . . . . . Active Scanning Responses . | . . . . . . . . Cargo Convoy Interrupts . | . . . . . . . . Stealth | -11 -10 -10 -10 -9 -8 -7 -7 --------- Run | Yrd Mat Min Exi Min Mat Fac Gar Distress Signals 2 | . . . . . 2 . . Communications Jammed . | . . . . . . . . Distress Signals . | . . . . . . . . Times Spotted 24 | . . 9 . . 6 . 9 Peak Tracking Total 15 | . . 15 . . 3 . 6 Tactical Retreats 5 | . . 2 . . 1 . 2 Traps | -11 -10 -10 -10 -9 -8 -7 -7 ------- Run | Yrd Mat Min Exi Min Mat Fac Gar Traps Triggered 1 | . . . . . . . 1 Indirectly . | . . . . . . . . Trap Hack Attempts . | . . . . . . . . Triggered . | . . . . . . . . Disarmed . | . . . . . . . . Reprogrammed . | . . . . . . . . Reused . | . . . . . . . . Traps Extracted . | . . . . . . . . Installed . | . . . . . . . . Triggered . | . . . . . . . . Machines | -11 -10 -10 -10 -9 -8 -7 -7 ---------- Run | Yrd Mat Min Exi Min Mat Fac Gar Machines Disabled . | . . . . . . . . Max in Single Turn . | . . . . . . . . Machines Repaired . | . . . . . . . . Machines Dismantled . | . . . . . . . . Machines Sabotaged . | . . . . . . . . Overloaded Fab Kills . | . . . . . . . . Hacking | -11 -10 -10 -10 -9 -8 -7 -7 --------- Run | Yrd Mat Min Exi Min Mat Fac Gar Machines Accessed 2 | . . . . . 1 1 . Terminals . | . . . . . . . . Fabricators . | . . . . . . . . Repair Stations . | . . . . . . . . Recycling Units . | . . . . . . . . Scanalyzers 1 | . . . . . 1 . . Garrison Access 1 | . . . . . . 1 . Total Hacks 8 | . . . . . 3 5 . Successful 2 | . . . . . 1 1 . Failed 6 | . . . . . 2 4 . Catastrophic . | . . . . . . . . Database Lockouts . | . . . . . . . . Manual . | . . . . . . . . Terminals . | . . . . . . . . Fabricators . | . . . . . . . . Repair Stations . | . . . . . . . . Recycling Units . | . . . . . . . . Scanalyzers 3 | . . . . . 3 . . Garrison Access 5 | . . . . . . 5 . Terminal Hacks . | . . . . . . . . Fabricator Hacks . | . . . . . . . . Repair Station Hacks . | . . . . . . . . Recycling Unit Hacks . | . . . . . . . . Scanalyzer 1 | . . . . . 1 . . Insert Component 1 | . . . . . 1 . . Garrison Access Hacks 1 | . . . . . . 1 . Unlock Access 1 | . . . . . . 1 . Unauthorized Hacks . | . . . . . . . . Terminals . | . . . . . . . . Fabricators . | . . . . . . . . Repair Stations . | . . . . . . . . Recycling Units . | . . . . . . . . Scanalyzers . | . . . . . . . . Garrison Access . | . . . . . . . . Data Cores Recovered . | . . . . . . . . Used . | . . . . . . . . Hacking Detections 2 | . . . . . 1 1 . Full Trace Events 1 | . . . . . 1 . . Feedback Events . | . . . . . . . . Feedback Blocked . | . . . . . . . . Robot Schematics Acquired . | . . . . . . . . Robots Built . | . . . . . . . . Authchips . | . . . . . . . . Time . | . . . . . . . . Total Robot Build Rating . | . . . . . . . . Part Schematics Acquired . | . . . . . . . . Parts Built . | . . . . . . . . Authchips . | . . . . . . . . Time . | . . . . . . . . Total Part Build Rating . | . . . . . . . . Parts Repaired . | . . . . . . . . Time . | . . . . . . . . Parts Recycled . | . . . . . . . . Recycled Matter . | . . . . . . . . Retrieved Matter . | . . . . . . . . Retrieved Components . | . . . . . . . . Parts Scanalyzed . | . . . . . . . . Part Schematics Acquired . | . . . . . . . . Parts Damaged . | . . . . . . . . Bothacking | -11 -10 -10 -10 -9 -8 -7 -7 ------------ Run | Yrd Mat Min Exi Min Mat Fac Gar Used RIF Installer 1 | . . . . . . . 1 Robots Hacked . | . . . . . . . . Non-combat . | . . . . . . . . Combat . | . . . . . . . . Robot Hacks Applied . | . . . . . . . . Relay Couplers Released . | . . . . . . . . Fabnet Peak Effective % . | . . . . . . . . Robots Rewired . | . . . . . . . . Allies Hacked . | . . . . . . . . Hacks Repelled . | . . . . . . . . Allies | -11 -10 -10 -10 -9 -8 -7 -7 -------- Run | Yrd Mat Min Exi Min Mat Fac Gar Total Allies . | . . . . . . . . Largest Group . | . . . . . . . . Highest-Rated Group . | . . . . . . . . Highest-Rated Ally . | . . . . . . . . Total Orders . | . . . . . . . . Ally Attacks . | . . . . . . . . Total Damage . | . . . . . . . . Kills . | . . . . . . . . Allies Corrupted . | . . . . . . . . Allies Melted . | . . . . . . . . Intel | -11 -10 -10 -10 -9 -8 -7 -7 ------- Run | Yrd Mat Min Exi Min Mat Fac Gar Active Infowar (turns) . | . . . . . . . . Robot Analysis Total . | . . . . . . . . Derelict Logs Recovered 1 | . . 1 . . . . . Drone Launches . | . . . . . . . . Drone Recoveries . | . . . . . . . . Exploration | -11 -10 -10 -10 -9 -8 -7 -7 ------------- Run | Yrd Mat Min Exi Min Mat Fac Gar Turns Passed 926 | 30 8 483 48 37 192 6 122 Spaces Moved 950 | 51 16 433 31 24 264 11 120 Core 175 | 51 16 71 . . . . 37 Treads 312 | . . 215 31 24 42 . . Legs . | . . . . . . . . Wheels . | . . . . . . . . Hover . | . . . . . . . . Flight 463 | . . 147 . . 222 11 83 Fastest Speed 31 | 50 50 40 160 160 37 31 31 Average Speed 80 | 50 50 101 160 160 57 31 37 Slowest Speed 160 | 50 50 160 160 160 160 31 110 Overloaded Moves . | . . . . . . . . Propulsion Burnouts . | . . . . . . . . Robots Hopped 4 | . . . . . 2 . 2 Potential Cave-ins . | . . . . . . . . Cave-ins Triggered . | . . . . . . . . Exploration Rate (%) 19 | 3 7 68 8 11 23 . 16 Regions Visited 7 Branch Regions 3 Pre-discovered Areas . | . . . . . . . . Known Exits Taken 1 | . . . . . . 1 . Unknown Exits Taken 6 | 1 1 1 1 1 1 . . Scrap Searched 1 | . . . . 1 . . . Spaces Dug . | . . . . . . . . Terrain Destroyed . | . . . . . . . . Melee . | . . . . . . . . Projectile . | . . . . . . . . AOE . | . . . . . . . . Terrain Rammed . | . . . . . . . . Walls Destroyed . | . . . . . . . . Machines Disabled . | . . . . . . . . Actions | -11 -10 -10 -10 -9 -8 -7 -7 --------- Run | Yrd Mat Min Exi Min Mat Fac Gar Total 1048 | 55 15 457 30 23 286 12 170 Wait 3 | . . . . . . . 3 Move 935 | 50 15 432 30 23 259 10 116 Hop 4 | . . . . . 2 . 2 Pick Up 10 | 5 . 1 . . 4 . . Fast Attach 18 | . . 5 . . 7 . 6 Attach 6 | . . 2 . . 1 2 1 Detach 3 | . . 2 . . 1 . . Swap 2 | . . 1 . . 1 . . Drop 4 | . . 1 . . 3 . . Fire 40 | . . 11 . . 8 . 21 Melee . | . . . . . . . . Ram 21 | . . . . . . . 21 Kick . | . . . . . . . . Crush 2 | . . 2 . . . . . Escape Stasis . | . . . . . . . . Rewire . | . . . . . . . . Trap . | . . . . . . . . Miscellaneous . | . . . . . . . . Route ------- -11/Scrapyard -10/Materials -10/Mines -10/Exiles -9/Mines -8/Materials -7/Factory -7/Garrison History --------- Turn | Location | Event 11 | -11/Scrapyard | Discovered new exit (range 16) 31 | -11/Scrapyard | Entered Materials 31 | -10/Materials | Discovered new exit (range 15) 39 | -10/Materials | Entered Mines 72 | -10/Mines | Assembled infested the area 109 | -10/Mines | YI-UF0 nonchalantly dropped a Grenade Launcher on the ground 135 | -10/Mines | Learned Materials emergency access door positions 318 | -10/Mines | Build established: Mutant 516 | -10/Mines | Discovered new exit (range 5) 522 | -10/Mines | Entered Exiles 550 | -10/Exiles | Discovered new exit (range 15) 570 | -10/Exiles | Entered Mines 583 | -9/Mines | Discovered new exit (range 14) 607 | -9/Mines | Entered Materials 607 | -8/Materials | Evolved 4 slots: Utility x4 745 | -8/Materials | Lost 3 parts (1n2u) 757 | -8/Materials | Met 7R-MNS 774 | -8/Materials | Discovered new exit (range 10) 799 | -8/Materials | Entered Factory 799 | -7/Factory | Evolved 2 slots: Propulsion x2 803 | -7/Factory | Identified exit to Garrison 805 | -7/Factory | Entered Garrison 821 | -7/Garrison | Triggered checkpoint 850 | -7/Garrison | Released all parts (7) 870 | -7/Garrison | Core integrity fell below 50% 883 | -7/Garrison | Lost 5 parts (3n2w) 885 | -7/Garrison | Warlord forces raided the area 887 | -7/Garrison | Core integrity fell below 20% 924 | -7/Garrison | Installed Relay Interface Framework 927 | -7/Garrison | Destroyed by B-48 Gladiator with Mace Last Messages --------------- 00877_ Slammed into S-27 Virus. 00877_ Destabilizing: System corrupted (+1). 00878_ Slammed into S-27 Virus. 00890_ Acquired 10 matter. 00891_ Acquired 1 matter. 00892_ S-27 Virus destroyed. 00893_ Acquired 1 matter. 00908_ S-27 Virus destroyed. 00909_ Acquired 7 matter. 00912_ Acquired Autogun. 00912_ Lgt. Assault Rifle destroyed. 00915_ S-27 Virus destroyed. 00917_ Acquired VTOL Module. 00919_ Autogun severed. 00919_ Acquired 23 matter. 00920_ Acquired VTOL Module. 00923_ Triggered Alarm Trap. 00923_ An alarm sounds. Initiating installation procedure... 00924_ Relay Interface Framework installed. Map ----- +----------------------------------------------------+ | ????????????? #?????????????????????????????????? | | ????????????# #?????????????????????????????????? | | ????????????# #?????????????????????????????????? | | ????????????# #?????????????????????????????????? | | ????????????# #?????????????????????????????????? | | ????????????# #?????????????????????????????????? | | ???########## ######### #??????????????????????? | | ???# #??????????????????????? | | ???# #??????????????????????? | | ???# ####### #########??????????????????????????? | | ???# #?????# #?????????? ???????????????????????? | | ???# #?????# #?????????? ???????????????????????? | | ???# #?????# #?????????? ???????????????????????? | | ???# #?????# #?????????? ???????????????????????? | | ???# #?????# #?????????? ???????????????????????? | | ???# #?????# #?????????? ???????????????????????? | | ???# #?????# #?????????? ???????????????????????? | | ???# #?????# #?????????# #??????????????????????? | | ?### #?????# ###???????# #??????????????????????? | | ?# #??#### #???????" #??????????????????????? | | ?# #??# #???????" ??????????????????????? | | ?# #?## ## #???????" #??????????????????????? | | ?######?#! !# ###???????# #??????????????????????? | | ????????#! !# #?????????# #??????????????????????? | | ????????#! !#*########### #??????????????????????? | | ????????## ##=*%%%%%g%[[%@#??????????????????????? | | ?????????# #######%%%####b#??????????????????????? | | ?######### ##???#"""""#?# #??????????????????????? | | ?# #???#######?#l#??????????????????????? | | ?# [ #???????????# #??????????????????????? | | ?# !* #??????????## ##?????????????????????? | | ?# [= #??????????# #?????????????????????? | | ?# !! #??????????#" "#?????????????????????? | | ?# ! #??????????#" "#?????????????????????? | | ?# #??????????#" "#?????????????????????? | | ?# [ [#??????????#"""#?????????????????????? | | ?# #??????????#####?????????????????????? | | ?# [ #????????????????????????????????????? | | ?############????????????????????????????????????? | | ?????????????????????????????????????????????????? | | ?????????????????????????????????????????????????? | | ?????????????????????????????????????????????????? | | ?????????????????????????????????????????????????? | | | | | | | | | | | | | | | +----------------------------------------------------+ Best States ------------- Heat Dissipation 34 Energy Generation 19 Energy Capacity 315 Matter Stores 300 Matter Capacity 300 Sight Range 16 Terrain Scan Density 85 Armor Coverage 150 Evasion (%) 63 Targeting Accuracy 10 Melee Accuracy 5 Recoil Reduction 1 Item Schematics ----------------- None Robot Schematics ------------------ None Fabricated ------------ Nothing Repaired ---------- Nothing Alien Tech Used ----------------- None Achievements -------------- None Challenges ------------ None Game ------ Seed NovaQuantumThermoblaster Manual? 0 Play Time 00:08:18 Cumulative 31.8 hours Start 2025.10.13 @ 23:13:39 End 2025.10.13 @ 23:20:15 Sessions 1 Manual Loads 0 Difficulty Rogue Special Mode None Game No. 124 Rogue 124 Adventurer 0 Explorer 0 Win Type - Total 0 Types 0/0/0/0/0/0/0/0/0/0 Lore% 11 Gallery% 31 Achievement% 28 Wizard Run 0 Options --------- Layout 1 ASCII 0 Keyboard 1 Movement Vi Keybinds 0 Fullscreen 1 Font 16/SmallcapsGlow Map View 55x38 Zoom Use 0% Tactical HUD 1 Map Filters NONE Filters NONE Steam 1 RUN: 5b938f0e-242b-4c88-8389-fa15f6a557b5